fUSD/lending_fUSD_20241119
["ID","MTS","AMOUNT","RATE_DAILY","PERIOD"]
[342696783,1732051853210,-1028.35,0.0005589,120]
[342696785,1732051853222,-500.0,0.0005589,120]
[342696803,1732051853385,-500.0,0.0005589,120]
[342696805,1732051853397,-500.0,0.0005589,120]
[342696807,1732051853406,-173.52,0.0005589,120]
[342696809,1732051853415,-572.32,0.0005589,120]
[342696811,1732051853426,-500.0,0.0005589,120]
[342696813,1732051853435,-505.28,0.0005589,120]
[342696815,1732051853444,-500.0,0.0005589,120]
[342696817,1732051853454,-500.0,0.0005589,120]
[342696820,1732051853463,-2000.0,0.0005589,120]
[342696822,1732051853473,-500.0,0.0005589,120]
[342696823,1732051853482,-500.0,0.0005589,120]
[342696825,1732051853492,-500.0,0.0005589,120]
[342696827,1732051853501,-500.0,0.0005589,120]
[342696829,1732051853510,-941.29,0.0005589,120]
[342696831,1732051853520,-500.0,0.0005589,120]
[342696833,1732051853529,-500.0,0.0005589,120]
[342696835,1732051853538,-500.0,0.0005589,7]
[342696837,1732051853549,-500.0,0.0005589,120]
[342696839,1732051853558,-500.0,0.0005589,120]
[342696841,1732051853567,-1270.57,0.0005589,60]
[342696843,1732051853577,-500.0,0.0005589,120]
[342696845,1732051853586,-500.0,0.0005589,120]
[342696847,1732051853595,-1341.5,0.0005589,3]
[342696849,1732051853604,-500.0,0.0005589,120]
[342696851,1732051853613,-500.0,0.0005589,120]
[342696853,1732051853623,-500.0,0.0005589,120]
[342696855,1732051853632,-500.0,0.0005589,120]
[342696857,1732051853641,-500.0,0.0005589,120]
[342696859,1732051853651,-500.0,0.0005589,120]
[342696861,1732051853660,-847.68,0.0005589,120]
[342696863,1732051853669,-1000.0,0.0005589,120]
[342696865,1732051853679,-500.0,0.0005589,120]
[342696867,1732051853688,-500.0,0.0005589,120]
[342696869,1732051853697,-500.0,0.0005589,30]
[342696871,1732051853706,-500.0,0.0005589,120]
[342696873,1732051853715,-500.0,0.0005589,120]
[342696875,1732051853725,-500.0,0.0005589,120]
[342696877,1732051853734,-500.0,0.0005589,120]
[342696879,1732051853744,-500.0,0.0005589,120]
[342696881,1732051853754,-500.0,0.0005589,120]
[342696883,1732051853764,-500.0,0.0005589,120]
[342696885,1732051853774,-500.0,0.0005589,120]
[342696887,1732051853783,-151.0,0.0005589,120]
[342696889,1732051853795,-500.0,0.0005589,120]
[342696891,1732051853805,-151.0,0.0005589,120]
[342696893,1732051853815,-500.0,0.0005589,120]
[342696896,1732051853824,-500.0,0.0005589,120]
[342696898,1732051853833,-500.0,0.0005589,120]
[342696900,1732051853843,-500.0,0.0005589,120]
[342696901,1732051853852,-500.0,0.0005589,120]
[342696904,1732051853861,-151.0,0.0005589,120]
[342696906,1732051853870,-2575.446376,0.0005589,120]
[342696907,1732051853879,-2575.446376,0.0005589,120]
[342696909,1732051853894,-500.0,0.0005589,120]
[342696911,1732051853903,-500.0,0.0005589,120]
[342696913,1732051853913,-500.0,0.0005589,120]
[342696915,1732051853922,-500.0,0.0005589,120]
[342696917,1732051853933,-2805.63,0.0005589,120]
[342696919,1732051853942,-500.0,0.0005589,120]
[342696921,1732051853951,-500.0,0.0005589,120]
[342696923,1732051853962,-500.0,0.0005589,120]
[342696925,1732051853971,-6363.56,0.0005589,120]
[342696927,1732051853981,-1612.24,0.0005589,120]
[342696929,1732051853991,-500.0,0.0005589,120]
[342696931,1732051854000,-245.43019035,0.0005589,120]
[342696933,1732051854010,-500.0,0.0005589,120]
[342696935,1732051854019,-849.35,0.0005589,120]
[342696937,1732051854029,-721.66,0.0005589,120]
[342696939,1732051854038,-151.0,0.0005589,120]
[342696941,1732051854049,-151.0,0.0005589,120]
[342696943,1732051854059,-500.0,0.0005589,120]
[342696945,1732051854069,-500.0,0.0005589,120]
[342696947,1732051854078,-500.0,0.0005589,120]
[342696949,1732051854088,-151.0,0.0005589,120]
[342696952,1732051854097,-500.0,0.0005589,120]
[342696953,1732051854107,-624.51,0.0005589,120]
[342696956,1732051854117,-500.0,0.0005589,120]
[342696958,1732051854126,-500.0,0.0005589,120]
[342696960,1732051854136,-500.0,0.0005589,120]
[342696961,1732051854145,-151.0,0.0005589,120]
[342696963,1732051854155,-500.0,0.0005589,120]
[342696965,1732051854164,-500.0,0.0005589,120]
[342696967,1732051854173,-500.0,0.0005589,120]
[342696969,1732051854183,-500.0,0.0005589,120]
[342696971,1732051854193,-500.0,0.0005589,120]
[342696973,1732051854202,-500.0,0.0005589,120]
[342696975,1732051854212,-500.0,0.0005589,120]
[342696977,1732051854221,-300.0,0.000559,20]
[342696979,1732051854230,-50000.0,0.00056,46]
[342696981,1732051854239,-50000.0,0.00056,56]
[342696983,1732051854248,-250.0,0.00056,30]
[342696985,1732051854259,-14000.0,0.00056,120]
[342696987,1732051854269,-500.0,0.00056063,120]
[342696989,1732051854278,-500.0,0.00056063,120]
[342696991,1732051854287,-645.47,0.00056063,120]
[342696993,1732051854299,-157.98907211,0.00056063,120]
[342696995,1732051854308,-671.27,0.00056063,120]
[342696997,1732051854317,-500.0,0.00056063,120]
[342696999,1732051854327,-500.0,0.00056063,120]
[342697001,1732051854336,-500.0,0.00056063,120]
[342697003,1732051854346,-500.0,0.00056063,120]
[342697005,1732051854356,-500.0,0.00056063,120]
[342697007,1732051854366,-500.0,0.00056063,120]
[342697009,1732051854375,-500.0,0.00056063,120]
[342697011,1732051854385,-500.0,0.00056063,120]
[342697013,1732051854394,-500.0,0.00056063,120]
[342697015,1732051854404,-500.0,0.00056063,120]
[342697017,1732051854413,-500.0,0.00056063,120]
[342697019,1732051854423,-500.0,0.00056063,120]
[342697021,1732051854433,-500.0,0.00056063,120]
[342697023,1732051854443,-500.0,0.00056063,120]
[342697025,1732051854452,-500.0,0.00056063,120]
[342697027,1732051854462,-500.0,0.00056063,120]
[342697029,1732051854471,-500.0,0.00056063,120]
[342697031,1732051854481,-500.0,0.00056063,120]
[342697033,1732051854490,-500.0,0.00056063,120]
[342697035,1732051854499,-561.44,0.00056063,120]
[342697037,1732051854509,-500.0,0.00056063,60]
[342697039,1732051854518,-500.0,0.00056063,120]
[342697041,1732051854527,-500.0,0.00056063,120]
[342697042,1732051854536,-500.0,0.00056063,120]
[342697043,1732051854547,-500.0,0.00056063,120]
[342697044,1732051854557,-500.0,0.00056063,120]
[342697045,1732051854566,-500.0,0.00056063,120]
[342697046,1732051854575,-500.0,0.00056063,120]
[342697047,1732051854585,-500.0,0.00056063,120]
[342697048,1732051854594,-500.0,0.00056164,120]
[342697049,1732051854603,-500.0,0.00056164,120]
[342697051,1732051854613,-500.0,0.00056164,120]
[342697053,1732051854622,-500.0,0.00056164,120]
[342697054,1732051854632,-500.0,0.00056164,120]
[342697056,1732051854641,-291.58012676,0.00056164,120]
[342697058,1732051854650,-662.78,0.00056164,120]
[342697060,1732051854660,-542.61,0.00056164,120]
[342697062,1732051854669,-500.0,0.00056164,120]
[342697064,1732051854678,-620.55,0.00056164,120]
[342697066,1732051854687,-567.7,0.00056164,120]
[342697068,1732051854696,-500.0,0.00056164,120]
[342697070,1732051854706,-1028.35,0.00056164,120]
[342697072,1732051854715,-500.0,0.00056164,120]
[342697074,1732051854723,-500.0,0.00056164,120]
[342697076,1732051854733,-500.0,0.00056164,120]
[342697078,1732051854741,-500.0,0.00056164,120]
[342697080,1732051854751,-505.28,0.00056164,120]
[342697082,1732051854760,-500.0,0.00056164,120]
[342697084,1732051854770,-406.14468296,0.00056164,120]
[342697086,1732051854779,-2000.0,0.00056164,120]
[342697088,1732051854788,-499.79999999,0.00056164,120]
[342697090,1732051854800,-500.0,0.00056164,120]
[342697092,1732051854810,-500.0,0.00056164,120]
[342697094,1732051854819,-500.0,0.00056164,120]
[342697096,1732051854828,-941.29,0.00056164,120]
[342697098,1732051854837,-500.0,0.00056164,120]
[342697100,1732051854847,-316.78,0.00056164,120]
[342697102,1732051854856,-500.0,0.00056164,120]
[342697104,1732051854865,-500.0,0.00056164,7]
[342697106,1732051854874,-500.0,0.00056164,120]
[342697107,1732051854883,-1270.57,0.00056164,60]
[342697110,1732051854894,-500.0,0.00056164,120]
[342697111,1732051854906,-500.0,0.00056164,120]
[342697114,1732051854915,-1341.5,0.00056164,3]
[342697115,1732051854925,-500.0,0.00056164,120]
[342697118,1732051854934,-500.0,0.00056164,120]
[342697120,1732051854945,-500.0,0.00056164,120]
[342697122,1732051854954,-500.0,0.00056164,120]
[342697124,1732051854964,-500.0,0.00056164,120]
[342697126,1732051854977,-847.68,0.00056164,120]
[342697128,1732051854987,-379.39,0.00056164,120]
[342697130,1732051854997,-500.0,0.00056164,120]
[342697132,1732051855006,-500.0,0.00056164,30]
[342697134,1732051855015,-500.0,0.00056164,120]
[342697136,1732051855025,-500.0,0.00056164,120]
[342697138,1732051855035,-500.0,0.00056164,120]
[342697140,1732051855047,-412.46677196,0.00056164,120]
[342697142,1732051855057,-379.68,0.00056164,120]
[342697144,1732051855066,-500.0,0.00056164,120]
[342697146,1732051855076,-500.0,0.00056164,120]
[342697148,1732051855086,-500.0,0.00056164,120]
[342697149,1732051855095,-568.2,0.00056164,120]
[342697151,1732051855105,-500.0,0.00056164,120]
[342697153,1732051855114,-500.0,0.00056164,120]
[342697155,1732051855124,-500.0,0.00056164,120]
[342697158,1732051855134,-500.0,0.00056164,120]
[342697159,1732051855144,-159.88,0.00056164,120]
[342697161,1732051855154,-500.0,0.00056164,120]
[342697164,1732051855169,-2805.63,0.00056164,120]
[342697165,1732051855178,-500.0,0.00056164,120]
[342697167,1732051855188,-500.0,0.00056164,120]
[342697169,1732051855198,-500.0,0.00056164,120]
[342697171,1732051855207,-6363.56,0.00056164,120]
[342697173,1732051855217,-1612.24,0.00056164,120]
[342697175,1732051855226,-500.0,0.00056164,120]
[342697177,1732051855235,-849.35,0.00056164,120]
[342697179,1732051855244,-721.66,0.00056164,120]
[342697181,1732051855254,-500.0,0.00056164,120]
[342697183,1732051855264,-500.0,0.00056164,120]
[342697185,1732051855273,-500.0,0.00056164,120]
[342697187,1732051855283,-624.51,0.00056164,120]
[342697189,1732051855292,-500.0,0.00056164,120]
[342697191,1732051855304,-500.0,0.00056164,120]
[342697193,1732051855314,-500.0,0.00056164,120]
[342697195,1732051855323,-500.0,0.00056164,120]
[342697197,1732051855332,-500.0,0.00056164,120]
[342697199,1732051855342,-500.0,0.00056164,120]
[342697201,1732051855352,-500.0,0.00056164,120]
[342697203,1732051855361,-500.0,0.00056164,120]
[342697205,1732051855370,-500.0,0.00056164,120]
[342697207,1732051855380,-500.0,0.00056337,120]
[342697209,1732051855390,-500.0,0.00056337,120]
[342697211,1732051855400,-671.27,0.00056337,120]
[342697213,1732051855410,-500.0,0.00056337,120]
[342697215,1732051855419,-500.0,0.00056337,120]
[342697217,1732051855429,-500.0,0.00056337,120]
[342697219,1732051855438,-500.0,0.00056337,120]
[342697221,1732051855448,-500.0,0.00056337,120]
[342697223,1732051855458,-500.0,0.00056337,120]
[342697225,1732051855468,-500.0,0.00056337,120]
[342697227,1732051855477,-500.0,0.00056337,120]
[342697229,1732051855491,-500.0,0.00056337,120]
[342697231,1732051855504,-500.0,0.00056337,120]
[342697233,1732051855515,-500.0,0.00056337,120]
[342697236,1732051855525,-500.0,0.00056337,120]
[342697238,1732051855534,-531.28,0.00056337,120]
[342697239,1732051855544,-500.0,0.00056337,120]
[342697242,1732051855557,-500.0,0.00056337,120]
[342697244,1732051855570,-500.0,0.00056337,120]
[342697246,1732051855580,-500.0,0.00056337,120]
[342697248,1732051855589,-500.0,0.00056337,120]
[342697250,1732051855598,-561.44,0.00056337,120]
[342697252,1732051855608,-500.0,0.00056337,60]
[342697254,1732051855617,-500.0,0.00056337,120]
[342697256,1732051855626,-500.0,0.00056337,120]
[342697258,1732051855635,-185.74523426,0.00056337,120]
[342697259,1732051855644,-191.47996115,0.00056337,120]
[342697261,1732051855653,-500.0,0.00056337,120]
[342697264,1732051855663,-500.0,0.00056337,120]
[342697266,1732051855672,-322.16,0.00056337,120]
[342697268,1732051855681,-500.0,0.00056337,120]
[342697270,1732051855691,-800.0,0.00056338,39]
[342697272,1732051855700,-800.0,0.00056338,39]
[342697274,1732051855710,-800.0,0.00056338,39]
[342697286,1732051855821,-800.0,0.00056338,39]
[342697288,1732051855831,-800.0,0.00056338,39]
[342697290,1732051855841,-500.0,0.00056438,120]
[342697292,1732051855850,-500.0,0.00056438,120]
[342697294,1732051855860,-500.0,0.00056438,120]
[342697296,1732051855869,-500.0,0.00056438,120]
[342697298,1732051855878,-500.0,0.00056438,120]
[342697300,1732051855889,-662.78,0.00056438,120]
[342697302,1732051855902,-542.61,0.00056438,120]
[342697304,1732051855912,-500.0,0.00056438,120]
[342697306,1732051855921,-620.55,0.00056438,120]
[342697308,1732051855931,-567.7,0.00056438,120]
[342697310,1732051855941,-500.0,0.00056438,120]
[342697312,1732051855951,-1028.35,0.00056438,120]
[342697314,1732051855960,-500.0,0.00056438,120]
[342697316,1732051855970,-500.0,0.00056438,120]
[342697318,1732051855980,-642.51588679,0.00056438,120]
[342697320,1732051855989,-500.0,0.00056438,120]
[342697322,1732051855999,-505.28,0.00056438,120]
[342697323,1732051856009,-500.0,0.00056438,120]
[342697324,1732051856019,-2000.0,0.00056438,120]
[342697325,1732051856028,-500.0,0.00056438,120]
[342697326,1732051856037,-500.0,0.00056438,120]
[342697327,1732051856051,-500.0,0.00056438,120]
[342697328,1732051856061,-941.29,0.00056438,120]
[342697330,1732051856071,-500.0,0.00056438,120]
[342697331,1732051856079,-500.0,0.00056438,120]
[342697333,1732051856088,-500.0,0.00056438,7]
[342697335,1732051856097,-500.0,0.00056438,120]
[342697337,1732051856107,-1270.57,0.00056438,60]
[342697339,1732051856116,-500.0,0.00056438,120]
[342697341,1732051856125,-1341.5,0.00056438,3]
[342697343,1732051856135,-500.0,0.00056438,120]
[342697345,1732051856144,-500.0,0.00056438,120]
[342697347,1732051856154,-500.0,0.00056438,120]
[342697349,1732051856163,-500.0,0.00056438,120]
[342697351,1732051856173,-500.0,0.00056438,120]
[342697353,1732051856183,-500.0,0.00056438,120]
[342697355,1732051856192,-847.68,0.00056438,120]
[342697357,1732051856202,-500.0,0.00056438,120]
[342697359,1732051856212,-500.0,0.00056438,30]
[342697361,1732051856221,-500.0,0.00056438,120]
[342697363,1732051856231,-500.0,0.00056438,120]
[342697365,1732051856240,-500.0,0.00056438,120]
[342697367,1732051856250,-500.0,0.00056438,120]
[342697369,1732051856259,-500.0,0.00056438,120]
[342697371,1732051856268,-374.21,0.00056438,120]
[342697373,1732051856277,-500.0,0.00056438,120]
[342697375,1732051856286,-500.0,0.00056438,120]
[342697377,1732051856297,-500.0,0.00056438,120]
[342697379,1732051856306,-500.0,0.00056438,120]
[342697381,1732051856315,-2805.63,0.00056438,120]
[342697383,1732051856325,-500.0,0.00056438,120]
[342697385,1732051856335,-6363.56,0.00056438,120]
[342697387,1732051856344,-1612.24,0.00056438,120]
[342697389,1732051856353,-849.35,0.00056438,120]
[342697391,1732051856363,-721.66,0.00056438,120]
[342697393,1732051856372,-500.0,0.00056438,120]
[342697395,1732051856382,-360.77457337,0.00056438,120]
[342697397,1732051856391,-500.0,0.00056438,120]
[342697399,1732051856401,-624.51,0.00056438,120]
[342697401,1732051856410,-500.0,0.00056438,120]
[342697403,1732051856420,-500.0,0.00056438,120]
[342697405,1732051856430,-500.0,0.00056438,120]
[342697407,1732051856439,-500.0,0.00056438,120]
[342697409,1732051856449,-500.0,0.00056438,120]
[342697411,1732051856459,-613.98867682,0.00056438,120]
[342697413,1732051856468,-500.0,0.00056438,120]
[342697415,1732051856477,-500.0,0.00056438,120]
[342697417,1732051856486,-500.0,0.00056438,120]
[342697419,1732051856495,-494.73,0.00056483,2]
[342697421,1732051856504,-262.77,0.00056559,120]
[342697423,1732051856515,-401334.53331063,0.0005656,120]
[342697425,1732051856524,-2206.0,0.00056579,25]
[342697427,1732051856533,-500.0,0.00056611,120]
[342697429,1732051856542,-500.0,0.00056611,120]
[342697431,1732051856554,-671.27,0.00056611,120]
[342697433,1732051856563,-500.0,0.00056611,120]
[342697435,1732051856572,-500.0,0.00056611,120]
[342697437,1732051856582,-474.0,0.00056611,120]
[342697439,1732051856591,-500.0,0.00056611,120]
[342697441,1732051856600,-500.0,0.00056611,120]
[342697443,1732051856610,-500.0,0.00056611,120]
[342697445,1732051856620,-500.0,0.00056611,120]
[342697447,1732051856629,-441.69,0.00056611,120]
[342697449,1732051856638,-500.0,0.00056611,120]
[342697451,1732051856647,-500.0,0.00056611,120]
[342697453,1732051856657,-500.0,0.00056611,120]
[342697455,1732051856667,-294.4266068,0.00056611,120]
[342697457,1732051856675,-500.0,0.00056611,120]
[342697459,1732051856685,-500.0,0.00056611,120]
[342697461,1732051856695,-500.0,0.00056611,120]
[342697463,1732051856704,-500.0,0.00056611,120]
[342697465,1732051856714,-561.44,0.00056611,120]
[342697467,1732051856724,-500.0,0.00056611,60]
[342697469,1732051856733,-500.0,0.00056611,120]
[342697471,1732051856742,-500.0,0.00056611,120]
[342697473,1732051856752,-500.0,0.00056611,120]
[342697475,1732051856761,-500.0,0.00056611,120]
[342697477,1732051856771,-758.26,0.00056621,120]
[342697478,1732051856780,-151.0,0.0005663,120]
[342697479,1732051856789,-500.0,0.00056712,120]
[342697480,1732051856800,-500.0,0.00056712,120]
[342697481,1732051856809,-500.0,0.00056712,120]
[342697482,1732051856819,-500.0,0.00056712,120]
[342697483,1732051856827,-500.0,0.00056712,120]
[342697484,1732051856837,-662.78,0.00056712,120]
[342697485,1732051856846,-542.61,0.00056712,120]
[342697486,1732051856855,-500.0,0.00056712,120]
[342697487,1732051856864,-620.55,0.00056712,120]
[342697488,1732051856873,-567.7,0.00056712,120]
[342697489,1732051856882,-500.0,0.00056712,120]
[342697490,1732051856895,-1028.35,0.00056712,120]
[342697491,1732051856904,-500.0,0.00056712,120]
[342697492,1732051856912,-500.0,0.00056712,120]
[342697493,1732051856921,-500.0,0.00056712,120]
[342697494,1732051856931,-505.28,0.00056712,120]
[342697495,1732051856940,-500.0,0.00056712,120]
[342697496,1732051856950,-481.75,0.00056712,120]
[342697497,1732051856959,-500.0,0.00056712,120]
[342697498,1732051856970,-500.0,0.00056712,120]
[342697499,1732051856980,-941.29,0.00056712,120]
[342697500,1732051856989,-500.0,0.00056712,120]
[342697501,1732051856998,-500.0,0.00056712,120]
[342697502,1732051857007,-500.0,0.00056712,7]
[342697503,1732051857016,-500.0,0.00056712,120]
[342697504,1732051857026,-1270.57,0.00056712,60]
[342697505,1732051857035,-500.0,0.00056712,120]
[342697506,1732051857047,-1341.5,0.00056712,3]
[342697507,1732051857057,-500.0,0.00056712,120]
[342697508,1732051857067,-500.0,0.00056712,120]
[342697509,1732051857077,-847.68,0.00056712,120]
[342697510,1732051857086,-500.0,0.00056712,30]
[342697511,1732051857096,-500.0,0.00056712,120]
[342697512,1732051857106,-500.0,0.00056712,120]
[342697513,1732051857116,-500.0,0.00056712,120]
[342697514,1732051857126,-500.0,0.00056712,120]
[342697515,1732051857135,-500.0,0.00056712,120]
[342697516,1732051857145,-500.0,0.00056712,120]
[342697517,1732051857154,-500.0,0.00056712,120]
[342697518,1732051857164,-500.0,0.00056712,120]
[342697519,1732051857173,-2805.63,0.00056712,120]
[342697520,1732051857182,-500.0,0.00056712,120]
[342697521,1732051857191,-6363.56,0.00056712,120]
[342697522,1732051857201,-1612.24,0.00056712,120]
[342697523,1732051857209,-849.35,0.00056712,120]
[342697524,1732051857218,-721.66,0.00056712,120]
[342697525,1732051857228,-500.0,0.00056712,120]
[342697526,1732051857237,-500.0,0.00056712,120]
[342697527,1732051857247,-624.51,0.00056712,120]
[342697528,1732051857256,-500.0,0.00056712,120]
[342697529,1732051857266,-500.0,0.00056712,120]
[342697530,1732051857275,-399.87,0.00056712,120]
[342697531,1732051857284,-268.7,0.00056712,120]
[342697533,1732051857296,-500.0,0.00056712,120]
[342697535,1732051857306,-500.0,0.00056885,120]
[342697537,1732051857315,-500.0,0.00056885,120]
[342697540,1732051857325,-671.27,0.00056885,120]
[342697542,1732051857335,-500.0,0.00056885,120]
[342697544,1732051857344,-500.0,0.00056885,120]
[342697546,1732051857353,-500.0,0.00056885,120]
[342697547,1732051857362,-500.0,0.00056885,120]
[342697549,1732051857371,-631.83,0.00056885,120]
[342697552,1732051857381,-446.62261712,0.00056885,120]
[342697553,1732051857391,-500.0,0.00056885,120]
[342697555,1732051857400,-500.0,0.00056885,120]
[342697557,1732051857409,-500.0,0.00056885,120]
[342697559,1732051857419,-500.0,0.00056885,120]
[342697561,1732051857428,-500.0,0.00056885,120]
[342697563,1732051857437,-500.0,0.00056885,120]
[342697565,1732051857447,-561.44,0.00056885,120]
[342697567,1732051857456,-500.0,0.00056885,60]
[342697569,1732051857465,-500.0,0.00056885,120]
[342697571,1732051857475,-554.96,0.00056885,120]
[342697573,1732051857485,-687.7,0.000569,30]
[342697575,1732051857495,-600.0,0.000569,20]
[342697577,1732051857505,-1000.0,0.000569,30]
[342697579,1732051857514,-3000.0,0.0005698,93]
[342697581,1732051857524,-466.3834799,0.00056986,120]
[342697583,1732051857534,-500.0,0.00056986,120]
[342697585,1732051857544,-500.0,0.00056986,120]
[342697587,1732051857554,-500.0,0.00056986,120]
[342697589,1732051857564,-500.0,0.00056986,120]
[342697591,1732051857574,-662.78,0.00056986,120]
[342697593,1732051857583,-542.61,0.00056986,120]
[342697595,1732051857593,-500.0,0.00056986,120]
[342697597,1732051857602,-620.55,0.00056986,120]
[342697599,1732051857612,-567.7,0.00056986,120]
[342697601,1732051857622,-500.0,0.00056986,120]
[342697603,1732051857631,-1028.35,0.00056986,120]
[342697605,1732051857640,-500.0,0.00056986,120]
[342697607,1732051857649,-500.0,0.00056986,120]
[342697609,1732051857658,-500.0,0.00056986,120]
[342697611,1732051857668,-505.28,0.00056986,120]
[342697613,1732051857677,-500.0,0.00056986,120]
[342697615,1732051857686,-500.0,0.00056986,120]
[342697617,1732051857696,-941.29,0.00056986,120]
[342697619,1732051857705,-500.0,0.00056986,120]
[342697621,1732051857714,-500.0,0.00056986,7]
[342697623,1732051857724,-500.0,0.00056986,120]
[342697625,1732051857734,-1270.57,0.00056986,60]
[342697627,1732051857743,-500.0,0.00056986,120]
[342697629,1732051857753,-1341.5,0.00056986,3]
[342697631,1732051857762,-500.0,0.00056986,120]
[342697633,1732051857771,-500.0,0.00056986,120]
[342697635,1732051857781,-847.68,0.00056986,120]
[342697637,1732051857790,-500.0,0.00056986,30]
[342697638,1732051857803,-500.0,0.00056986,120]
[342697640,1732051857812,-500.0,0.00056986,120]
[342697642,1732051857823,-500.0,0.00056986,120]
[342697644,1732051857832,-500.0,0.00056986,120]
[342697646,1732051857842,-500.0,0.00056986,120]
[342697648,1732051857851,-500.0,0.00056986,120]
[342697650,1732051857861,-500.0,0.00056986,120]
[342697652,1732051857870,-2805.63,0.00056986,120]
[342697654,1732051857880,-6363.56,0.00056986,120]
[342697656,1732051857889,-1612.24,0.00056986,120]
[342697658,1732051857902,-849.35,0.00056986,120]
[342697660,1732051857912,-721.66,0.00056986,120]
[342697661,1732051857922,-500.0,0.00056986,120]
[342697662,1732051857931,-500.0,0.00056986,120]
[342697663,1732051857942,-500.0,0.00056986,120]
[342697664,1732051858047,-624.51,0.00056986,120]
[342697665,1732051858058,-500.0,0.00056986,120]
[342697666,1732051858067,-500.0,0.00056986,120]
[342697667,1732051858077,-2799.49763314,0.0005699,2]
[342697668,1732051858087,-50000.0,0.00057,47]
[342697669,1732051858096,-50000.0,0.00057,57]
[342697671,1732051858106,-10000.0,0.00057,120]
[342697673,1732051858115,-150000.0,0.00057,60]
[342697675,1732051858125,-750.0,0.00057,2]
[342697677,1732051858135,-50000.0,0.00057,120]
[342697679,1732051858144,-294.725395,0.00057,120]
[342697681,1732051858153,-151.0,0.00057,120]
[342697683,1732051858163,-151.0,0.00057,120]
[342697685,1732051858172,-2575.446376,0.00057,120]
[342697687,1732051858181,-2575.446376,0.00057,120]
[342697689,1732051858190,-151.0,0.00057,120]
[342697691,1732051858199,-151.0,0.00057,120]
[342697693,1732051858208,-151.0,0.00057,120]
[342697695,1732051858218,-151.0,0.00057,120]
[342697697,1732051858227,-322.42617439,0.00057087,30]
[342697699,1732051858236,-179.47,0.00057159,120]
[342697701,1732051858245,-500.0,0.00057159,120]
[342697703,1732051858254,-671.27,0.00057159,120]
[342697705,1732051858263,-500.0,0.00057159,120]
[342697707,1732051858272,-500.0,0.00057159,120]
[342697709,1732051858282,-500.0,0.00057159,120]
[342697711,1732051858291,-500.0,0.00057159,120]
[342697713,1732051858303,-500.0,0.00057159,120]
[342697715,1732051858312,-549.13,0.00057159,120]
[342697717,1732051858321,-647.98949691,0.00057159,120]
[342697719,1732051858330,-500.0,0.00057159,120]
[342697721,1732051858340,-500.0,0.00057159,120]
[342697723,1732051858349,-561.44,0.00057159,120]
[342697725,1732051858358,-500.0,0.00057159,60]
[342697727,1732051858367,-500.0,0.00057159,120]